{"text_format":"1","workbook":"xlsx","n_sheets":1,"sheets":["INSTALL GUIDE"],"not_rendered":{"charts":0,"images":0,"macros":1,"external_links":0,"defined_names":30,"comments":0,"pivot_tables":0},"unopened":[],"bounds":{"document_bytes":16777216,"sheet_cells":100000,"rows_first":2000,"rows_last":500,"rows_between":2000,"halvings":0,"cell_chars":16384,"cell_head_chars":4096},"cells_cut":0,"cells_raw":0,"read":"whole","date_system":"1900"}

{"sheet":"INSTALL GUIDE","index":0,"n_rows":114,"n_cols":6,"rows_kept":114,"cut":false,"hidden":false,"merged":[[1,1,1,2],[1,3,1,5],[3,7,4,8],[6,7,7,8],[2,1,2,3]]}
[]
[null,"INSTALLATION GUIDELINES",null,{"$f":"F114","v":0}]
[]
[null,"DESCRIPTION","HOURS","COST","# OF","CHARGE"]
[null,"HOURLY RATE"," ",120,null," "]
[null," "," "," ",null," "]
[null,"Service Call & Quote",1.5,{"$f":"C7*$D$5","v":180},null,{"$f":"$E7*$D7","v":0}]
[null,null,null," "]
[null,"SWING GATES"," "," ",null," "]
[null,"Install Single Pedestrian Gate (One Man)",1,{"$f":"C10*$D$5","v":120},null,{"$f":"$E10*$D10","v":0}]
[null,"Install Single Driveway Gate (Two Man)",2,240,null,0]
[null,"Install Double Driveway Gates (Two Man)",3,360,null,0]
[null,"Install One motor ",1,120,null,{"$f":"$E13*$D13","v":0}]
[null,"Install Two motors",2,240,null,0]
[null,"Install logic control",1,120,null,0]
[null,"Install LOCKELEC to single gate.",1,120,null,0]
[null,"Install LOCKELEC to double gates",2,240,null,0]
[null,"Install ELSLOCK to double gates",1,120,null,0]
[null,"Install underground foundation box",2,240,null,0]
[null,"Concrete single post in",2,240,null,0]
[null,"Concrete in two posts in",4,480,null,0]
[null,"Bolt on one post",1,120,null,0]
[null,"Bolt on two Posts",1.5,180,null,0]
[]
[null,null,null," "]
[null,"SLIDING GATES"," "," ",null," "]
[null,"Install Sliding Gate (Two Man)",2,240,null,0]
[null,"Install motor with nylon rack to prepared base",2,240,null,0]
[null,"Install motor with steel rack to prepared base - Industrial",3,360,null,0]
[null,"Install motor base in concrete pad",2,240,null,0]
[null,"Install concrete plinth or cantilever base",10,1200,null,0]
[null,"Concrete for Plinth @ $60/mtr",0,{"$f":"C32*60","v":0},null,0]
[null,"Install bolt down track",1,120,null,0]
[null," "," "," ",null," "]
[null,"ACCESSORIES"," "," ",null," "]
[null,"Photocells - Not including cabling",1,120,null,0]
[null,"Keypad - Including 3 mtrs of cabling",1,120,null,0]
[null,"Keyswitch - Including 3 metres of cabling",1,120,null,0]
[null,"GSM Remote",1,120,null,0]
[null,"Intercom - One to one - Not including cabling",2,240,null,0]
[null,"GSM Intercom",2,240,null,0]
[null,"Stand alone receiver",0.5,60,null,0]
[null,"Pushbutton - Including 3 metres of cabling",1,120,null,0]
[null,"Solar Panels x 1",2,240,null,0]
[null,null," "," "]
[null,"ACCESS CONTROL"," "," ",null," "]
[null,"Install loop detector (+$220 for Cable & Silicone)",4,480,null,0]
[null,"Install stand alone reader / controller - not including cabling",0.75,90,null,0]
[null,"Install network access controller",3,360,null,0]
[null,"Install reader - Not including cabling",0.75,90,null,0]
[null,"Install VMD202R",2,240,null,0]
[null,"Install CARSENSE 303FP or DB (+$220 for Cable & Silicone)",1,120,null,0]
[null,null,null," "]
[null,"READY MADE GATES",null," ",null," "]
[null,"Install double gate auto kit - not including cabling under driveway",6,720,null,0]
[null,"Install ready made auto slider kit to existing concrete",6,{"$f":"C56*$D$5","v":720},null,0]
[null,null,null," "]
[null,null,null," "]
[null,"INSTALLATION GUIDELINES",null," "]
[null,null,null," ",null," "]
[null,"DESCRIPTION","HOURS"," ",null,"CHARGE"]
[null,"ROAD BARRIERS"," "," ",null," "]
[null,"Install boom gate to prepared pad",1.5,180,null,{"$f":"$E63*$D63","v":0}]
[null,"Install boom gate concrete pad",2,240,null,0]
[null,"Install boom gate skirt",1,120,null,0]
[null,"Install boom gate support",0.5,60,null,0]
[null,"Install rising bollard - Not including cabling to logic",4,480,null,0]
[null,"Install rising bollard logic control",1,120,null,0]
[null,"Install Dropgate - Not including cabling",2,{"$f":"C69*$D$5","v":240},null,0]
[null,null,null,0]
[null,"EASY GATE",null,0]
[null,"Assemble gate or premium panel up to six square metres",1.5,{"$f":"C72*$D$5","v":180},null,{"$f":"$E72*$D72","v":0}]
[null,"Assemble gate or premium panel over six square metres",2.5,{"$f":"C73*$D$5","v":300},null,0]
[null,"Install standard panel",1,{"$f":"C74*$D$5","v":120},null,0]
[null,"Install premium panel",1.5,180,null,0]
[null,null,null,{"$f":"C76*$D$5","v":0}]
[null,"CUSTOM PANELS",null,0]
[null,"Install custom panel",1,120,null,{"$f":"$E78*$D78","v":0}]
[null,null,null,0]
[null,null,null,0]
[null,null,null,0]
[null,null,null,0]
[null,null,null,0]
[null,null,null,0]
[null,null,null,0]
[null,null,null,0]
[null,null,null,0]
[null,null,null,0]
[null,null,null,0]
[null,null,null,0]
[null,null,null,0]
[null,null,null,0]
[null,null,null,0]
[null,null,null,0]
[null,null,null,0]
[null,null,null,0]
[null,null,null,0]
[null,null,null,0]
[null,null,null,0]
[null,null,null,0]
[null,null,null,0]
[null,null,null,0]
[null,null,null,0]
[null,null,null,0]
[null,null,null,0]
[null,null,null,0]
[null,null,null,0]
[null,null,null,0]
[null,null,null,0]
[null,null,null,0]
[null,null,null,0]
[null,null,null,0]
[null,null,null,0]
[null,"TOTAL",null,null,null,{"$f":"SUM(F5:F113)","v":0}]